Workbook

Sheet Vstupní data
A1: Vstupní data
B3: Instalovaný výkon (MW) | C3: 10
B4: Kapacita (MWh) | C4: 6.5
B5: Účinnost (%) | C5: 0.96
B6: Pořizovací cena Li-ion baterie (Kč/KW) | C6: =1000*24.5 -> 24500
B7: Celková pořizovací cena Li-ion baterie (mil Kč), v ceně je zahrnuta instalace | C7: =10*C6/1000 -> 245
B8: Očekávaný výnos | C8: 0.08
B9: Plánovaná životnost (roků) | C9: 13
B10: Počet dní provozu za rok | C10: 353
B11: Průměrný příjem za poskytování PR (Kč/MW) za jednu hodinu | C11: 653
B12: Snížený příjem za poskytování PR (Kč/MW) za jednu hodinu (90% z průměrného) | C12: =C11*0.9 -> 587.7
B13: Příjem za poskytování služby naší baterií za jednu hodinu | C13: =C12*C3 -> 5877
B14: Příjem za poskytování služby naší baterií za rok (mil Kč) | C14: =C13*C10*24/1000000 -> 49.789944
B15: Průměrný denní požadavek na výši kladné regulační energie (MWh) | C15: 10
B16: Průměrný denní požadavek na výši záporné regulační energie (MWh) | C16: 10
B17: Průměrná cena elektřiny na VDT (Kč/MWh) | C17: ='Ceny elektřiny na VDT'!B13 -> 863.4558718
B18: Cena kupované elektřiny v rámci bilaterální dohody | C18: ='Ceny elektřiny na VDT'!C24 -> 1452.19027
B19: Cena prodávané elektřiny v rámci bilaterální dohody | C19: ='Ceny elektřiny na VDT'!C25 -> 308.265353
B20: Cena rezervované kapacity přenosových zařízení (tis Kč/MW/měsíc) | C20: =78222/1000 -> 78.222
B21: Náklady za rezervovanou kapacitu přenosových zařízení (mil Kč/rok) | C21: =C20*10*12/1000 -> 9.38664
B22: Náklady na pojištění majetku (% z pořizovací ceny/rok) | C22: 0.01
B23: Náklady na provoz a údržbu (% z pořizovací ceny/rok) | C23: 0.02
B24: Daňová odpisová skupina | C24: 3
B25: Účetní odpisy (% z pořizovací ceny/rok) | C25: =100/13/100 -> 0.07692307692

Sheet Varianta A
A1: Varianta A: Recovery time 2 hodiny | B1: rok | C1: 0 | D1: 1 | E1: 2 | F1: 3 | G1: 4 | H1: 5 | I1: 6 | J1: 7 | K1: 8 | L1: 9 | M1: 10 | N1: 11 | O1: 12 | P1: 13
A2: Měrné pořizovací náklady baterie | B2: Kč/kW | C2: ='Vstupní data'!C6 -> 24500
A3: Celková cena baterie | B3: mil Kč | C3: ='Vstupní data'!C7 -> 245
A4: Rezervovaný výkon | B4: MW | C4: 10
A5: Účinnost baterie | B5: % | C5: 0.96
A6: Nominální diskontní míra | B6: % | C6: ='Vstupní data'!C8 -> 0.08
A7: Míra meziroční inflace | B7: % | C7: 0.02
A8: Počet dní provozu v roce | B8: dny | C8: 353
A9: Počet hodin provozu v roce | B9: hodiny | C9: ='Vstupní data'!C10*24 -> 8472
A10: Výnosy
A11: Cena za poskytování služby PR | B11: Kč/MWh | C11: ='Vstupní data'!$C$12 -> 587.7 | D11: =C11*(1+D12) -> 599.454 | E11: =D11*(1+E12) -> 611.44308 | F11: 629.7863724 | G11: 648.6799636 | H11: 668.1403625 | I11: 688.1845734 | J11: 708.8301106 | K11: 730.0950139 | L11: 751.9978643 | M11: 774.5578002 | N11: 797.7945342 | O11: 821.7283702 | P11: 846.3802214
A12: Předpokládaná nominální změna ceny | B12: Kč/MWh | D12: 0.02 | E12: 0.02 | F12: 0.03 | G12: 0.03 | H12: 0.03 | I12: 0.03 | J12: 0.03 | K12: 0.03 | L12: 0.03 | M12: 0.03 | N12: 0.03 | O12: 0.03 | P12: 0.03
A14: Tržby za poskytování služby PR | B14: mil Kč | D14: =$C$4*$C$9*D11/1000000 -> 50.78574288 | E14: 51.80145774 | F14: 53.35550147 | G14: 54.95616651 | H14: 56.60485151 | I14: 58.30299705 | J14: 60.05208697 | K14: 61.85364958 | L14: 63.70925906 | M14: 65.62053683 | N14: 67.58915294 | O14: 69.61682753 | P14: 71.70533235
A15: Průměrná cena elektřiny na VDT | B15: Kč/MWh | C15: ='Vstupní data'!$C$17 -> 863.4558718 | D15: =C15*(1+D16) -> 889.3595479 | E15: =D15*(1+E16) -> 916.0403344 | F15: =E15*(1+F16) -> 952.6819478 | G15: =F15*(1+G16) -> 990.7892257 | H15: =G15*(1+H16) -> 1030.420795 | I15: =H15*(1+I16) -> 1071.637626 | J15: =I15*(1+J16) -> 1114.503132 | K15: =J15*(1+K16) -> 1159.083257 | L15: =K15*(1+L16) -> 1217.03742 | M15: =L15*(1+M16) -> 1277.889291 | N15: =M15*(1+N16) -> 1341.783755 | O15: =N15*(1+O16) -> 1408.872943 | P15: =O15*(1+P16) -> 1479.31659
A16: Předpokládaná nominální změna ceny | B16: % | D16: 0.03 | E16: 0.03 | F16: 0.04 | G16: 0.04 | H16: 0.04 | I16: 0.04 | J16: 0.04 | K16: 0.04 | L16: 0.05 | M16: 0.05 | N16: 0.05 | O16: 0.05 | P16: 0.05
A18: Prodaná energie získaná poskytováním záporné regulace | B18: MWh/den | D18: ='Vstupní data'!$C$16*$C$5 -> 9.6 | E18: ='Vstupní data'!$C$16*$C$5 -> 9.6 | F18: ='Vstupní data'!$C$16*$C$5 -> 9.6 | G18: ='Vstupní data'!$C$16*$C$5 -> 9.6 | H18: ='Vstupní data'!$C$16*$C$5 -> 9.6 | I18: ='Vstupní data'!$C$16*$C$5 -> 9.6 | J18: ='Vstupní data'!$C$16*$C$5 -> 9.6 | K18: ='Vstupní data'!$C$16*$C$5 -> 9.6 | L18: ='Vstupní data'!$C$16*$C$5 -> 9.6 | M18: ='Vstupní data'!$C$16*$C$5 -> 9.6 | N18: ='Vstupní data'!$C$16*$C$5 -> 9.6 | O18: ='Vstupní data'!$C$16*$C$5 -> 9.6 | P18: ='Vstupní data'!$C$16*$C$5 -> 9.6
A19: Prodaná energie získaná poskytováním záporné regulace | B19: MWh/rok | D19: =D18*$C$8 -> 3388.8 | E19: =E18*$C$8 -> 3388.8 | F19: 3388.8 | G19: 3388.8 | H19: 3388.8 | I19: 3388.8 | J19: 3388.8 | K19: 3388.8 | L19: 3388.8 | M19: 3388.8 | N19: 3388.8 | O19: 3388.8 | P19: 3388.8
A20: Tržby za prodej energie získané s poskytování záporné regulace | B20: mil Kč | D20: =D19*D15/1000000 -> 3.013861636 | E20: 3.104277485 | F20: 3.228448585 | G20: 3.357586528 | H20: 3.491889989 | I20: 3.631565589 | J20: 3.776828212 | K20: 3.927901341 | L20: 4.124296408 | M20: 4.330511228 | N20: 4.547036789 | O20: 4.774388629 | P20: 5.01310806
A21: Výnosy celkem | B21: mil Kč | D21: =D14+D20 -> 53.79960452 | E21: 54.90573522 | F21: 56.58395005 | G21: 58.31375304 | H21: 60.0967415 | I21: 61.93456264 | J21: 63.82891518 | K21: 65.78155092 | L21: 67.83355547 | M21: 69.95104806 | N21: 72.13618973 | O21: 74.39121616 | P21: 76.71844041
A22: Náklady
A23: Průměrná cena elektřiny na VDT | B23: Kč/MWh | C23: ='Vstupní data'!$C$17 -> 863.4558718 | D23: =C23*(1+D24) -> 889.3595479 | E23: =D23*(1+E24) -> 916.0403344 | F23: =E23*(1+F24) -> 952.6819478 | G23: =F23*(1+G24) -> 990.7892257 | H23: =G23*(1+H24) -> 1030.420795 | I23: =H23*(1+I24) -> 1071.637626 | J23: =I23*(1+J24) -> 1114.503132 | K23: =J23*(1+K24) -> 1159.083257 | L23: =K23*(1+L24) -> 1217.03742 | M23: =L23*(1+M24) -> 1277.889291 | N23: =M23*(1+N24) -> 1341.783755 | O23: =N23*(1+O24) -> 1408.872943 | P23: =O23*(1+P24) -> 1479.31659
A24: Předpokládaná nominální změna ceny | B24: % | D24: =D16 -> 0.03 | E24: =E16 -> 0.03 | F24: 0.04 | G24: 0.04 | H24: 0.04 | I24: 0.04 | J24: 0.04 | K24: 0.04 | L24: 0.05 | M24: 0.05 | N24: 0.05 | O24: 0.05 | P24: 0.05
A25: Energie dokoupená po poskytnutí kladné regulace | B25: MWh/den | D25: ='Vstupní data'!$C$15/$C$5 -> 10.41666667 | E25: ='Vstupní data'!$C$15/$C$5 -> 10.41666667 | F25: ='Vstupní data'!$C$15/$C$5 -> 10.41666667 | G25: ='Vstupní data'!$C$15/$C$5 -> 10.41666667 | H25: ='Vstupní data'!$C$15/$C$5 -> 10.41666667 | I25: ='Vstupní data'!$C$15/$C$5 -> 10.41666667 | J25: ='Vstupní data'!$C$15/$C$5 -> 10.41666667 | K25: ='Vstupní data'!$C$15/$C$5 -> 10.41666667 | L25: ='Vstupní data'!$C$15/$C$5 -> 10.41666667 | M25: ='Vstupní data'!$C$15/$C$5 -> 10.41666667 | N25: ='Vstupní data'!$C$15/$C$5 -> 10.41666667 | O25: ='Vstupní data'!$C$15/$C$5 -> 10.41666667 | P25: ='Vstupní data'!$C$15/$C$5 -> 10.41666667
A26: Energie dokoupená po poskytnutí kladné regulace | B26: MWh/rok | D26: =D25*$C$8 -> 3677.083333 | E26: =E25*$C$8 -> 3677.083333 | F26: 3677.083333 | G26: 3677.083333 | H26: 3677.083333 | I26: 3677.083333 | J26: 3677.083333 | K26: 3677.083333 | L26: 3677.083333 | M26: 3677.083333 | N26: 3677.083333 | O26: 3677.083333 | P26: 3677.083333
A27: Náklady na vlastní spotřebu energie | B27: mil Kč | D27: =D26*D23/1000000 -> 3.270249171 | E27: 3.368356646 | F27: 3.503090912 | G27: 3.643214549 | H27: 3.788943131 | I27: 3.940500856 | J27: 4.09812089 | K27: 4.262045726 | L27: 4.475148012 | M27: 4.698905412 | N27: 4.933850683 | O27: 5.180543217 | P27: 5.439570378
A28: Náklady za rezervovanou kapacitu přenosových zařízení | B28: mil Kč | D28: ='Vstupní data'!C21 -> 9.38664 | E28: =D28 -> 9.38664 | F28: =E28 -> 9.38664 | G28: 9.38664 | H28: 9.38664 | I28: 9.38664 | J28: 9.38664 | K28: 9.38664 | L28: 9.38664 | M28: 9.38664 | N28: 9.38664 | O28: 9.38664 | P28: 9.38664
A29: Provoz a údržba | B29: % investice | C29: ='Vstupní data'!C23 -> 0.02 | D29: =C29*(1+D30) -> 0.0204 | E29: =D29*(1+E30) -> 0.020808 | F29: =E29*(1+F30) -> 0.02122416 | G29: =F29*(1+G30) -> 0.0216486432 | H29: 0.02208161606 | I29: 0.02252324839 | J29: 0.02297371335 | K29: 0.02343318762 | L29: =K29*(1+L30) -> 0.02390185137 | M29: =L29*(1+M30) -> 0.0243798884 | N29: =M29*(1+N30) -> 0.02486748617 | O29: 0.02536483589 | P29: 0.02587213261
A30: Předpokládaný nominální růst ceny | B30: % | D30: =C7 -> 0.02 | E30: =D30 -> 0.02 | F30: 0.02 | G30: 0.02 | H30: 0.02 | I30: 0.02 | J30: 0.02 | K30: 0.02 | L30: 0.02 | M30: 0.02 | N30: 0.02 | O30: 0.02 | P30: 0.02
A31: Náklady na provoz a údržbu | B31: mil Kč | D31: =$C$3*C29 -> 4.9 | E31: =$C$3*E29 -> 5.09796 | F31: 5.1999192 | G31: 5.303917584 | H31: 5.409995936 | I31: 5.518195854 | J31: 5.628559771 | K31: 5.741130967 | L31: 5.855953586 | M31: 5.973072658 | N31: 6.092534111 | O31: 6.214384793 | P31: 6.338672489
A32: Pojištění majetku | B32: % investice | D32: ='Vstupní data'!$C$22 -> 0.01 | E32: ='Vstupní data'!$C$22 -> 0.01 | F32: ='Vstupní data'!$C$22 -> 0.01 | G32: ='Vstupní data'!$C$22 -> 0.01 | H32: ='Vstupní data'!$C$22 -> 0.01 | I32: ='Vstupní data'!$C$22 -> 0.01 | J32: ='Vstupní data'!$C$22 -> 0.01 | K32: ='Vstupní data'!$C$22 -> 0.01 | L32: ='Vstupní data'!$C$22 -> 0.01 | M32: ='Vstupní data'!$C$22 -> 0.01 | N32: ='Vstupní data'!$C$22 -> 0.01 | O32: ='Vstupní data'!$C$22 -> 0.01 | P32: ='Vstupní data'!$C$22 -> 0.01
A33: Náklady na pojištění majetku | B33: mil Kč | D33: =C3*D32 -> 2.45 | E33: =D33*(1+((E7)/100)) -> 2.45 | F33: 2.45 | G33: 2.45 | H33: 2.45 | I33: 2.45 | J33: 2.45 | K33: 2.45 | L33: 2.45 | M33: 2.45 | N33: 2.45 | O33: 2.45 | P33: 2.45
A34: Náklady celkem bez odpisů | B34: mil Kč | D34: =+D27+D28+D31+D33 -> 20.00688917 | E34: =+E27+E28+E31+E33 -> 20.30295665 | F34: 20.53965011 | G34: 20.78377213 | H34: 21.03557907 | I34: 21.29533671 | J34: 21.56332066 | K34: 21.83981669 | L34: 22.1677416 | M34: 22.50861807 | N34: 22.86302479 | O34: 23.23156801 | P34: 23.61488287
A35: Účetní odpisy | B35: % investice | D35: ='Vstupní data'!$C$25 -> 0.07692307692 | E35: ='Vstupní data'!$C$25 -> 0.07692307692 | F35: ='Vstupní data'!$C$25 -> 0.07692307692 | G35: ='Vstupní data'!$C$25 -> 0.07692307692 | H35: ='Vstupní data'!$C$25 -> 0.07692307692 | I35: ='Vstupní data'!$C$25 -> 0.07692307692 | J35: ='Vstupní data'!$C$25 -> 0.07692307692 | K35: ='Vstupní data'!$C$25 -> 0.07692307692 | L35: ='Vstupní data'!$C$25 -> 0.07692307692 | M35: ='Vstupní data'!$C$25 -> 0.07692307692 | N35: ='Vstupní data'!$C$25 -> 0.07692307692 | O35: ='Vstupní data'!$C$25 -> 0.07692307692 | P35: ='Vstupní data'!$C$25 -> 0.07692307692
A36: Účetní odpisy | B36: mil Kč | D36: =$C$3*D35 -> 18.84615385 | E36: =$C$3*E35 -> 18.84615385 | F36: 18.84615385 | G36: 18.84615385 | H36: 18.84615385 | I36: 18.84615385 | J36: 18.84615385 | K36: 18.84615385 | L36: 18.84615385 | M36: 18.84615385 | N36: 18.84615385 | O36: 18.84615385 | P36: 18.84615385
A37: Náklady celkem | B37: mil Kč | D37: =D36+D34 -> 38.85304302 | E37: =E36+E34 -> 39.14911049 | F37: 39.38580396 | G37: 39.62992598 | H37: 39.88173291 | I37: 40.14149056 | J37: 40.40947451 | K37: 40.68597054 | L37: 41.01389544 | M37: 41.35477192 | N37: 41.70917864 | O37: 42.07772186 | P37: 42.46103671
A38: EBT | B38: mil Kč | D38: =MAX(D21-D37,0) -> 14.9465615 | E38: 15.75662473 | F38: 17.1981461 | G38: 18.68382706 | H38: 20.21500859 | I38: 21.79307209 | J38: 23.41944067 | K38: 25.09558038 | L38: 26.81966003 | M38: 28.59627615 | N38: 30.42701109 | O38: 32.3134943 | P38: 34.2574037
A39: Daň (19%) | B39: mil Kč | D39: =D38*0.19 -> 2.839846685 | E39: =E38*0.19 -> 2.993758699 | F39: 3.267647758 | G39: 3.549927142 | H39: 3.840851631 | I39: 4.140683697 | J39: 4.449693727 | K39: 4.768160272 | L39: 5.095735405 | M39: 5.433292468 | N39: 5.781132107 | O39: 6.139563917 | P39: 6.508906703
A40: EAT | B40: mil Kč | D40: =D38-D39 -> 12.10671481 | E40: =E38-E39 -> 12.76286603 | F40: 13.93049834 | G40: 15.13389992 | H40: 16.37415695 | I40: 17.65238839 | J40: 18.96974694 | K40: 20.32742011 | L40: 21.72392462 | M40: 23.16298368 | N40: 24.64587898 | O40: 26.17393038 | P40: 27.748497
A41: Cash Flow | B41: mil Kč | C41: =-C3 -> -245 | D41: =D40+D36 -> 30.95286866 | E41: 31.60901988 | F41: 32.77665218 | G41: 33.98005377 | H41: 35.2203108 | I41: 36.49854224 | J41: 37.81590079 | K41: 39.17357395 | L41: 40.57007847 | M41: =M40+M36-M3 -> 42.00913752 | N41: =N40+N36 -> 43.49203283 | O41: =O40+O36 -> 45.02008423 | P41: =P40+P36 -> 46.59465084
A42: Kumulovaný Cash Flow | B42: mil Kč | C42: =C41 -> -245 | D42: =C42+D41 -> -214.0471313 | E42: =D42+E41 -> -182.4381115 | F42: -149.6614593 | G42: -115.6814055 | H42: -80.46109471 | I42: -43.96255247 | J42: -6.146651684 | K42: 33.02692227 | L42: 73.59700073 | M42: 115.6061383 | N42: 159.0981711 | O42: 204.1182553 | P42: 250.7129062
A43: Diskontovaný Cash Flow | B43: mil Kč | C43: =-C3 -> -245 | D43: =D41/((1+($C$6))^D1) -> 28.66006357 | E43: 27.09963981 | F43: 26.01916326 | G43: 24.97635392 | H43: 23.97035173 | I43: 23.00027274 | J43: 22.0652149 | K43: 21.1642631 | L43: 20.29513985 | M43: 19.45835894 | N43: 18.6529874 | O43: 17.87809486 | P43: 17.13275642
A44: Kumulovaný diskontovaný Cash Flow | B44: mil Kč | C44: =C43 -> -245 | D44: =C44+D43 -> -216.3399364 | E44: =D44+E43 -> -189.2402966 | F44: =E44+F43 -> -163.2211334 | G44: -138.2447794 | H44: -114.2744277 | I44: -91.27415497 | J44: -69.20894007 | K44: -48.04467697 | L44: -27.74953712 | M44: -8.291178179 | N44: 10.36180922 | O44: 28.23990408 | P44: 45.3726605
A46: IRR | B46: =IRR(C41:P41) -> 0.1098793476
A47: NPV (mil Kč) | B47: =NPV(C6,D41,E41,F41,G41,H41,I41,J41,K41,L41,M41,N41,O41,P41)+C41 -> 45.3726605
A48: Doba návratnosti (roky) | B48: =IF(COUNTIF(C42:P42,"<0")<14,COUNTIF(C42:P42,"<0"),"x") -> 8
A49: Diskontovaná doba návratnosti (roky) | B49: =IF(COUNTIF(C44:P44,"<0")<14,COUNTIF(C44:P44,"<0"),"x") -> 11
A73: Vývoj ceny za poskytování PR | D73: 1 | E73: 2 | F73: 3 | G73: 4 | H73: 5 | I73: 6 | J73: 7 | K73: 8 | L73: 9 | M73: 10 | N73: 11 | O73: 12 | P73: 13
A74: =Scénáře!C4 -> základní | D74: =Scénáře!D4 -> 0.01 | E74: =Scénáře!E4 -> 0.01 | F74: =Scénáře!F4 -> 0.02 | G74: =Scénáře!G4 -> 0.02 | H74: =Scénáře!H4 -> 0.02 | I74: =Scénáře!I4 -> 0.02 | J74: =Scénáře!J4 -> 0.02 | K74: =Scénáře!K4 -> 0.02 | L74: =Scénáře!L4 -> 0.02 | M74: =Scénáře!M4 -> 0.02 | N74: =Scénáře!N4 -> 0.02 | O74: =Scénáře!O4 -> 0.02 | P74: =Scénáře!P4 -> 0.02
A75: =Scénáře!C5 -> příznivý | D75: =Scénáře!D5 -> 0.02 | E75: =Scénáře!E5 -> 0.02 | F75: =Scénáře!F5 -> 0.03 | G75: =Scénáře!G5 -> 0.03 | H75: =Scénáře!H5 -> 0.03 | I75: =Scénáře!I5 -> 0.03 | J75: =Scénáře!J5 -> 0.03 | K75: =Scénáře!K5 -> 0.03 | L75: =Scénáře!L5 -> 0.03 | M75: =Scénáře!M5 -> 0.03 | N75: =Scénáře!N5 -> 0.03 | O75: =Scénáře!O5 -> 0.03 | P75: =Scénáře!P5 -> 0.03
A76: =Scénáře!C6 -> nepříznivý | D76: =Scénáře!D6 -> 0 | E76: =Scénáře!E6 -> 0 | F76: =Scénáře!F6 -> 0.01 | G76: =Scénáře!G6 -> 0.01 | H76: =Scénáře!H6 -> 0.01 | I76: =Scénáře!I6 -> 0.01 | J76: =Scénáře!J6 -> 0.01 | K76: =Scénáře!K6 -> 0.01 | L76: =Scénáře!L6 -> 0.01 | M76: =Scénáře!M6 -> 0.01 | N76: =Scénáře!N6 -> 0.01 | O76: =Scénáře!O6 -> 0.01 | P76: =Scénáře!P6 -> 0.01
A78: Vývoj ceny elektřiny na VDT | D78: 1 | E78: 2 | F78: 3 | G78: 4 | H78: 5 | I78: 6 | J78: 7 | K78: 8 | L78: 9 | M78: 10 | N78: 11 | O78: 12 | P78: 13
A79: =Scénáře!C9 -> základní | D79: =Scénáře!D9 -> 0.03 | E79: =Scénáře!E9 -> 0.03 | F79: =Scénáře!F9 -> 0.04 | G79: =Scénáře!G9 -> 0.04 | H79: =Scénáře!H9 -> 0.04 | I79: =Scénáře!I9 -> 0.04 | J79: =Scénáře!J9 -> 0.04 | K79: =Scénáře!K9 -> 0.04 | L79: =Scénáře!L9 -> 0.05 | M79: =Scénáře!M9 -> 0.05 | N79: =Scénáře!N9 -> 0.05 | O79: =Scénáře!O9 -> 0.05 | P79: =Scénáře!P9 -> 0.05
A80: =Scénáře!C10 -> příznivý | D80: =Scénáře!D10 -> 0.01 | E80: =Scénáře!E10 -> 0.01 | F80: =Scénáře!F10 -> 0.02 | G80: =Scénáře!G10 -> 0.02 | H80: =Scénáře!H10 -> 0.02 | I80: =Scénáře!I10 -> 0.02 | J80: =Scénáře!J10 -> 0.02 | K80: =Scénáře!K10 -> 0.02 | L80: =Scénáře!L10 -> 0.03 | M80: =Scénáře!M10 -> 0.03 | N80: =Scénáře!N10 -> 0.03 | O80: =Scénáře!O10 -> 0.03 | P80: =Scénáře!P10 -> 0.03
A81: =Scénáře!C11 -> nepříznivý | D81: =Scénáře!D11 -> 0.05 | E81: =Scénáře!E11 -> 0.05 | F81: =Scénáře!F11 -> 0.06 | G81: =Scénáře!G11 -> 0.06 | H81: =Scénáře!H11 -> 0.06 | I81: =Scénáře!I11 -> 0.06 | J81: =Scénáře!J11 -> 0.06 | K81: =Scénáře!K11 -> 0.06 | L81: =Scénáře!L11 -> 0.07 | M81: =Scénáře!M11 -> 0.07 | N81: =Scénáře!N11 -> 0.07 | O81: =Scénáře!O11 -> 0.07 | P81: =Scénáře!P11 -> 0.07

Sheet Varianta B
A1: Varianta B: Recovery time 30 minut | B1: rok | C1: 0 | D1: 1 | E1: 2 | F1: 3 | G1: 4 | H1: 5 | I1: 6 | J1: 7 | K1: 8 | L1: 9 | M1: 10 | N1: 11 | O1: 12 | P1: 13
A2: Měrné pořizovací náklady baterie | B2: Kč/kW | C2: ='Vstupní data'!C6 -> 24500
A3: Celková cena baterie | B3: mil Kč | C3: ='Vstupní data'!C7 -> 245
A4: Rezervovaný výkon | B4: MW | C4: 10
A5: Účinnost baterie | B5: % | C5: 0.96
A6: Nominální diskontní míra | B6: % | C6: ='Vstupní data'!C8 -> 0.08
A7: Míra meziroční inflace | B7: % | C7: 0.02
A8: Počet dní v roce | B8: dny | C8: 353
A9: Počet hodin v roce | B9: hodiny | C9: ='Vstupní data'!C10*24 -> 8472
A10: Výnosy
A11: Cena za poskytování služby PR | B11: Kč/MWh | C11: ='Vstupní data'!$C$12 -> 587.7 | D11: =C11*(1+D12) -> 599.454 | E11: =D11*(1+E12) -> 611.44308 | F11: 629.7863724 | G11: 648.6799636 | H11: 668.1403625 | I11: 688.1845734 | J11: 708.8301106 | K11: 730.0950139 | L11: 751.9978643 | M11: 774.5578002 | N11: 797.7945342 | O11: 821.7283702 | P11: 846.3802214
A12: Předpokládaná nominální změna ceny | B12: Kč/MWh | D12: 0.02 | E12: 0.02 | F12: 0.03 | G12: 0.03 | H12: 0.03 | I12: 0.03 | J12: 0.03 | K12: 0.03 | L12: 0.03 | M12: 0.03 | N12: 0.03 | O12: 0.03 | P12: 0.03
A14: Výnosy za poskytování služby PR | B14: mil Kč | D14: =$C$4*$C$9*D11/1000000 -> 50.78574288 | E14: =$C$4*$C$9*E11/1000000 -> 51.80145774 | F14: 53.35550147 | G14: 54.95616651 | H14: 56.60485151 | I14: 58.30299705 | J14: 60.05208697 | K14: 61.85364958 | L14: 63.70925906 | M14: 65.62053683 | N14: 67.58915294 | O14: 69.61682753 | P14: 71.70533235
A15: Cena prodávané elektřiny | B15: Kč/MWh | C15: ='Vstupní data'!C19 -> 308.265353 | D15: =C15*(1+D16) -> 317.5133136 | E15: =D15*(1+E16) -> 327.038713 | F15: =E15*(1+F16) -> 340.1202615 | G15: =F15*(1+G16) -> 353.7250719 | H15: =G15*(1+H16) -> 367.8740748 | I15: =H15*(1+I16) -> 382.5890378 | J15: =I15*(1+J16) -> 397.8925993 | K15: =J15*(1+K16) -> 413.8083033 | L15: =K15*(1+L16) -> 434.4987185 | M15: =L15*(1+M16) -> 456.2236544 | N15: =M15*(1+N16) -> 479.0348371 | O15: =N15*(1+O16) -> 502.986579 | P15: =O15*(1+P16) -> 528.1359079
A16: Předpokládaná nominální změna ceny | B16: % | D16: 0.03 | E16: 0.03 | F16: 0.04 | G16: 0.04 | H16: 0.04 | I16: 0.04 | J16: 0.04 | K16: 0.04 | L16: 0.05 | M16: 0.05 | N16: 0.05 | O16: 0.05 | P16: 0.05
A18: Prodaná energie získaná poskytováním záporné regulace | B18: MWh/den | D18: ='Vstupní data'!$C$16*$C$5 -> 9.6 | E18: ='Vstupní data'!$C$16*$C$5 -> 9.6 | F18: ='Vstupní data'!$C$16*$C$5 -> 9.6 | G18: ='Vstupní data'!$C$16*$C$5 -> 9.6 | H18: ='Vstupní data'!$C$16*$C$5 -> 9.6 | I18: ='Vstupní data'!$C$16*$C$5 -> 9.6 | J18: ='Vstupní data'!$C$16*$C$5 -> 9.6 | K18: ='Vstupní data'!$C$16*$C$5 -> 9.6 | L18: ='Vstupní data'!$C$16*$C$5 -> 9.6 | M18: ='Vstupní data'!$C$16*$C$5 -> 9.6 | N18: ='Vstupní data'!$C$16*$C$5 -> 9.6 | O18: ='Vstupní data'!$C$16*$C$5 -> 9.6 | P18: ='Vstupní data'!$C$16*$C$5 -> 9.6
A19: Prodaná energie získaná poskytováním záporné regulace | B19: MWh/rok | D19: =D18*$C$8 -> 3388.8 | E19: =E18*$C$8 -> 3388.8 | F19: 3388.8 | G19: 3388.8 | H19: 3388.8 | I19: 3388.8 | J19: 3388.8 | K19: 3388.8 | L19: 3388.8 | M19: 3388.8 | N19: 3388.8 | O19: 3388.8 | P19: 3388.8
A20: Výnosy za prodej energie získané s poskytování záporné regulace | B20: mil Kč | D20: =D19*D15/1000000 -> 1.075989117 | E20: 1.10826879 | F20: 1.152599542 | G20: 1.198703524 | H20: 1.246651665 | I20: 1.296517731 | J20: 1.348378441 | K20: 1.402313578 | L20: 1.472429257 | M20: 1.54605072 | N20: 1.623353256 | O20: 1.704520919 | P20: 1.789746965
A21: Výnosy celkem | B21: mil Kč | D21: =D14+D20 -> 51.861732 | E21: 52.90972653 | F21: 54.50810101 | G21: 56.15487004 | H21: 57.85150317 | I21: 59.59951479 | J21: 61.40046541 | K21: 63.25596315 | L21: 65.18168832 | M21: 67.16658755 | N21: 69.2125062 | O21: 71.32134845 | P21: 73.49507932
A22: Náklady
A23: Cena kupované elektřiny | B23: Kč/MWh | C23: ='Vstupní data'!C18 -> 1452.19027 | D23: =C23*(1+D24) -> 1495.755978 | E23: =D23*(1+E24) -> 1540.628658 | F23: =E23*(1+F24) -> 1602.253804 | G23: 1666.343956 | H23: 1732.997715 | I23: =H23*(1+I24) -> 1802.317623 | J23: =I23*(1+J24) -> 1874.410328 | K23: =J23*(1+K24) -> 1949.386741 | L23: =K23*(1+L24) -> 2046.856078 | M23: 2149.198882 | N23: 2256.658826 | O23: =N23*(1+O24) -> 2369.491768 | P23: =O23*(1+P24) -> 2487.966356
A24: Předpokládaná nominální změna ceny | B24: % | D24: =D16 -> 0.03 | E24: =E16 -> 0.03 | F24: 0.04 | G24: 0.04 | H24: 0.04 | I24: 0.04 | J24: 0.04 | K24: 0.04 | L24: 0.05 | M24: 0.05 | N24: 0.05 | O24: 0.05 | P24: 0.05
A25: Energie dokoupená po poskytnutí kladné regulace | B25: MWh/den | D25: ='Vstupní data'!$C$15/$C$5 -> 10.41666667 | E25: ='Vstupní data'!$C$15/$C$5 -> 10.41666667 | F25: ='Vstupní data'!$C$15/$C$5 -> 10.41666667 | G25: ='Vstupní data'!$C$15/$C$5 -> 10.41666667 | H25: ='Vstupní data'!$C$15/$C$5 -> 10.41666667 | I25: ='Vstupní data'!$C$15/$C$5 -> 10.41666667 | J25: ='Vstupní data'!$C$15/$C$5 -> 10.41666667 | K25: ='Vstupní data'!$C$15/$C$5 -> 10.41666667 | L25: ='Vstupní data'!$C$15/$C$5 -> 10.41666667 | M25: ='Vstupní data'!$C$15/$C$5 -> 10.41666667 | N25: ='Vstupní data'!$C$15/$C$5 -> 10.41666667 | O25: ='Vstupní data'!$C$15/$C$5 -> 10.41666667 | P25: ='Vstupní data'!$C$15/$C$5 -> 10.41666667
A26: Energie dokoupená po poskytnutí kladné regulace | B26: MWh/rok | D26: =D25*$C$8 -> 3677.083333 | E26: =E25*$C$8 -> 3677.083333 | F26: 3677.083333 | G26: 3677.083333 | H26: 3677.083333 | I26: 3677.083333 | J26: 3677.083333 | K26: 3677.083333 | L26: 3677.083333 | M26: 3677.083333 | N26: 3677.083333 | O26: 3677.083333 | P26: 3677.083333
A27: Náklady na vlastní spotřebu energie | B27: mil Kč | D27: =D26*D23/1000000 -> 5.500019379 | E27: 5.665019961 | F27: 5.891620759 | G27: 6.127285589 | H27: 6.372377013 | I27: 6.627272093 | J27: 6.892362977 | K27: 7.168057496 | L27: 7.526460371 | M27: 7.90278339 | N27: 8.297922559 | O27: 8.712818687 | P27: 9.148459621
A28: Náklady za rezervovanou kapacitu přenosových zařízení | B28: mil Kč | D28: ='Vstupní data'!C21 -> 9.38664 | E28: =D28 -> 9.38664 | F28: =E28 -> 9.38664 | G28: 9.38664 | H28: 9.38664 | I28: 9.38664 | J28: 9.38664 | K28: 9.38664 | L28: 9.38664 | M28: 9.38664 | N28: 9.38664 | O28: 9.38664 | P28: 9.38664
A29: Provoz a údržba | B29: % investice | C29: ='Vstupní data'!C23 -> 0.02 | D29: =C29*(1+D30) -> 0.0204 | E29: =D29*(1+E30) -> 0.020808 | F29: =E29*(1+F30) -> 0.02122416 | G29: =F29*(1+G30) -> 0.0216486432 | H29: 0.02208161606 | I29: 0.02252324839 | J29: 0.02297371335 | K29: 0.02343318762 | L29: 0.02390185137 | M29: 0.0243798884 | N29: 0.02486748617 | O29: 0.02536483589 | P29: 0.02587213261
A30: Předpokládaný nominální růst ceny | B30: % | D30: =C7 -> 0.02 | E30: =D30 -> 0.02 | F30: 0.02 | G30: 0.02 | H30: 0.02 | I30: 0.02 | J30: 0.02 | K30: 0.02 | L30: 0.02 | M30: 0.02 | N30: 0.02 | O30: 0.02 | P30: 0.02
A31: Náklady na provoz a údržbu | B31: mil Kč | D31: =$C$3*C29 -> 4.9 | E31: =$C$3*E29 -> 5.09796 | F31: 5.1999192 | G31: 5.303917584 | H31: 5.409995936 | I31: 5.518195854 | J31: 5.628559771 | K31: 5.741130967 | L31: 5.855953586 | M31: 5.973072658 | N31: 6.092534111 | O31: 6.214384793 | P31: 6.338672489
A32: Pojištění majetku | B32: % investice | D32: ='Vstupní data'!$C$22 -> 0.01 | E32: ='Vstupní data'!$C$22 -> 0.01 | F32: ='Vstupní data'!$C$22 -> 0.01 | G32: ='Vstupní data'!$C$22 -> 0.01 | H32: ='Vstupní data'!$C$22 -> 0.01 | I32: ='Vstupní data'!$C$22 -> 0.01 | J32: ='Vstupní data'!$C$22 -> 0.01 | K32: ='Vstupní data'!$C$22 -> 0.01 | L32: ='Vstupní data'!$C$22 -> 0.01 | M32: ='Vstupní data'!$C$22 -> 0.01 | N32: ='Vstupní data'!$C$22 -> 0.01 | O32: ='Vstupní data'!$C$22 -> 0.01 | P32: ='Vstupní data'!$C$22 -> 0.01
A33: Náklady na pojištění majetku | B33: mil Kč | D33: =C3*D32 -> 2.45 | E33: =D33*(1+((E7)/100)) -> 2.45 | F33: 2.45 | G33: 2.45 | H33: 2.45 | I33: 2.45 | J33: 2.45 | K33: 2.45 | L33: 2.45 | M33: 2.45 | N33: 2.45 | O33: 2.45 | P33: 2.45
A34: Náklady celkem bez odpisů | B34: mil Kč | D34: =+D27+D28+D31+D33 -> 22.23665938 | E34: =+E27+E28+E31+E33 -> 22.59961996 | F34: 22.92817996 | G34: 23.26784317 | H34: 23.61901295 | I34: 23.98210795 | J34: 24.35756275 | K34: 24.74582846 | L34: 25.21905396 | M34: 25.71249605 | N34: 26.22709667 | O34: 26.76384348 | P34: 27.32377211
A35: Účetní odpisy | B35: % investice | D35: ='Vstupní data'!$C$25 -> 0.07692307692 | E35: ='Vstupní data'!$C$25 -> 0.07692307692 | F35: ='Vstupní data'!$C$25 -> 0.07692307692 | G35: ='Vstupní data'!$C$25 -> 0.07692307692 | H35: ='Vstupní data'!$C$25 -> 0.07692307692 | I35: ='Vstupní data'!$C$25 -> 0.07692307692 | J35: ='Vstupní data'!$C$25 -> 0.07692307692 | K35: ='Vstupní data'!$C$25 -> 0.07692307692 | L35: ='Vstupní data'!$C$25 -> 0.07692307692 | M35: ='Vstupní data'!$C$25 -> 0.07692307692 | N35: ='Vstupní data'!$C$25 -> 0.07692307692 | O35: ='Vstupní data'!$C$25 -> 0.07692307692 | P35: ='Vstupní data'!$C$25 -> 0.07692307692
A36: Účetní odpisy | B36: mil Kč | D36: =$C$3*D35 -> 18.84615385 | E36: =$C$3*E35 -> 18.84615385 | F36: 18.84615385 | G36: 18.84615385 | H36: 18.84615385 | I36: 18.84615385 | J36: 18.84615385 | K36: 18.84615385 | L36: 18.84615385 | M36: 18.84615385 | N36: 18.84615385 | O36: 18.84615385 | P36: 18.84615385
A37: Náklady celkem | B37: mil Kč | D37: =D36+D34 -> 41.08281323 | E37: =E36+E34 -> 41.44577381 | F37: 41.77433381 | G37: 42.11399702 | H37: 42.46516679 | I37: 42.82826179 | J37: 43.20371659 | K37: 43.59198231 | L37: 44.0652078 | M37: 44.55864989 | N37: 45.07325052 | O37: 45.60999733 | P37: 46.16992596
A38: EBT | B38: mil Kč | D38: =MAX(D21-D37,0) -> 10.77891877 | E38: 11.46395272 | F38: 12.73376721 | G38: 14.04087302 | H38: 15.38633638 | I38: 16.77125299 | J38: 18.19674881 | K38: 19.66398084 | L38: 21.11648052 | M38: 22.60793766 | N38: 24.13925568 | O38: 25.71135112 | P38: 27.32515336
A39: Daň (19%) | B39: mil Kč | D39: =D38*0.19 -> 2.047994567 | E39: =E38*0.19 -> 2.178151017 | F39: 2.419415769 | G39: 2.667765873 | H39: 2.923403912 | I39: 3.186538068 | J39: 3.457382274 | K39: 3.73615636 | L39: 4.012131298 | M39: 4.295508155 | N39: 4.586458579 | O39: 4.885156713 | P39: 5.191779139
A40: EAT | B40: mil Kč | D40: =D38-D39 -> 8.730924205 | E40: =E38-E39 -> 9.285801704 | F40: 10.31435144 | G40: 11.37310714 | H40: 12.46293247 | I40: 13.58471492 | J40: 14.73936654 | K40: 15.92782448 | L40: 17.10434922 | M40: 18.31242951 | N40: 19.5527971 | O40: 20.82619441 | P40: 22.13337422
A41: Cash Flow | B41: mil Kč | C41: =-C3 -> -245 | D41: =D40+D36 -> 27.57707805 | E41: 28.13195555 | F41: 29.16050528 | G41: 30.21926099 | H41: 31.30908631 | I41: 32.43086877 | J41: 33.58552038 | K41: 34.77397833 | L41: 35.95050306 | M41: =M40+M36-M3 -> 37.15858335 | N41: =N40+N36 -> 38.39895095 | O41: =O40+O36 -> 39.67234825 | P41: =P40+P36 -> 40.97952807
A42: Kumulovaný Cash Flow | B42: mil Kč | C42: =C41 -> -245 | D42: =C42+D41 -> -217.4229219 | E42: =D42+E41 -> -189.2909664 | F42: -160.1304611 | G42: -129.9112001 | H42: -98.60211381 | I42: -66.17124504 | J42: -32.58572466 | K42: 2.188253673 | L42: 38.13875674 | M42: 75.29734009 | N42: 113.696291 | O42: 153.3686393 | P42: 194.3481674
A43: Diskontovaný Cash Flow | B43: mil Kč | C43: =-C3 -> -245 | D43: =D41/((1+($C$6))^D1) -> 25.53433153 | E43: 24.11861758 | F43: 23.14854926 | G43: 22.21205896 | H43: 21.30843806 | I43: 20.43694847 | J43: 19.59682856 | K43: 18.78729848 | L43: 17.98420203 | M43: 17.21161383 | N43: 16.46865188 | O43: 15.75443533 | P43: 15.06808742
A44: Kumulovaný diskontovaný Cash Flow | B44: mil Kč | C44: =C43 -> -245 | D44: =C44+D43 -> -219.4656685 | E44: =D44+E43 -> -195.3470509 | F44: =E44+F43 -> -172.1985016 | G44: -149.9864427 | H44: -128.6780046 | I44: -108.2410561 | J44: -88.64422758 | K44: -69.85692909 | L44: -51.87272707 | M44: -34.66111323 | N44: -18.19246136 | O44: -2.438026026 | P44: 12.6300614
A46: IRR | B46: =IRR(C41:P41) -> 0.08858958755
A47: NPV (mil Kč) | B47: =NPV(C6,D41,E41,F41,G41,H41,I41,J41,K41,L41,M41,N41,O41,P41)+C41 -> 12.6300614
A48: Doba návratnosti (roky) | B48: =IF(COUNTIF(C42:P42,"<0")<14,COUNTIF(C42:P42,"<0"),"x") -> 8
A49: Diskontovaná doba návratnosti (roky) | B49: =IF(COUNTIF(C44:P44,"<0")<14,COUNTIF(C44:P44,"<0"),"x") -> 13
A73: Vývoj ceny za poskytování PR | D73: 1 | E73: 2 | F73: 3 | G73: 4 | H73: 5 | I73: 6 | J73: 7 | K73: 8 | L73: 9 | M73: 10 | N73: 11 | O73: 12 | P73: 13
A74: =Scénáře!C4 -> základní | D74: =Scénáře!D4 -> 0.01 | E74: =Scénáře!E4 -> 0.01 | F74: =Scénáře!F4 -> 0.02 | G74: =Scénáře!G4 -> 0.02 | H74: =Scénáře!H4 -> 0.02 | I74: =Scénáře!I4 -> 0.02 | J74: =Scénáře!J4 -> 0.02 | K74: =Scénáře!K4 -> 0.02 | L74: =Scénáře!L4 -> 0.02 | M74: =Scénáře!M4 -> 0.02 | N74: =Scénáře!N4 -> 0.02 | O74: =Scénáře!O4 -> 0.02 | P74: =Scénáře!P4 -> 0.02
A75: =Scénáře!C5 -> příznivý | D75: =Scénáře!D5 -> 0.02 | E75: =Scénáře!E5 -> 0.02 | F75: =Scénáře!F5 -> 0.03 | G75: =Scénáře!G5 -> 0.03 | H75: =Scénáře!H5 -> 0.03 | I75: =Scénáře!I5 -> 0.03 | J75: =Scénáře!J5 -> 0.03 | K75: =Scénáře!K5 -> 0.03 | L75: =Scénáře!L5 -> 0.03 | M75: =Scénáře!M5 -> 0.03 | N75: =Scénáře!N5 -> 0.03 | O75: =Scénáře!O5 -> 0.03 | P75: =Scénáře!P5 -> 0.03
A76: =Scénáře!C6 -> nepříznivý | D76: =Scénáře!D6 -> 0 | E76: =Scénáře!E6 -> 0 | F76: =Scénáře!F6 -> 0.01 | G76: =Scénáře!G6 -> 0.01 | H76: =Scénáře!H6 -> 0.01 | I76: =Scénáře!I6 -> 0.01 | J76: =Scénáře!J6 -> 0.01 | K76: =Scénáře!K6 -> 0.01 | L76: =Scénáře!L6 -> 0.01 | M76: =Scénáře!M6 -> 0.01 | N76: =Scénáře!N6 -> 0.01 | O76: =Scénáře!O6 -> 0.01 | P76: =Scénáře!P6 -> 0.01
A78: Vývoj ceny elektřiny na VDT | D78: 1 | E78: 2 | F78: 3 | G78: 4 | H78: 5 | I78: 6 | J78: 7 | K78: 8 | L78: 9 | M78: 10 | N78: 11 | O78: 12 | P78: 13
A79: =Scénáře!C9 -> základní | D79: =Scénáře!D9 -> 0.03 | E79: =Scénáře!E9 -> 0.03 | F79: =Scénáře!F9 -> 0.04 | G79: =Scénáře!G9 -> 0.04 | H79: =Scénáře!H9 -> 0.04 | I79: =Scénáře!I9 -> 0.04 | J79: =Scénáře!J9 -> 0.04 | K79: =Scénáře!K9 -> 0.04 | L79: =Scénáře!L9 -> 0.05 | M79: =Scénáře!M9 -> 0.05 | N79: =Scénáře!N9 -> 0.05 | O79: =Scénáře!O9 -> 0.05 | P79: =Scénáře!P9 -> 0.05
A80: =Scénáře!C10 -> příznivý | D80: =Scénáře!D10 -> 0.01 | E80: =Scénáře!E10 -> 0.01 | F80: =Scénáře!F10 -> 0.02 | G80: =Scénáře!G10 -> 0.02 | H80: =Scénáře!H10 -> 0.02 | I80: =Scénáře!I10 -> 0.02 | J80: =Scénáře!J10 -> 0.02 | K80: =Scénáře!K10 -> 0.02 | L80: =Scénáře!L10 -> 0.03 | M80: =Scénáře!M10 -> 0.03 | N80: =Scénáře!N10 -> 0.03 | O80: =Scénáře!O10 -> 0.03 | P80: =Scénáře!P10 -> 0.03
A81: =Scénáře!C11 -> nepříznivý | D81: =Scénáře!D11 -> 0.05 | E81: =Scénáře!E11 -> 0.05 | F81: =Scénáře!F11 -> 0.06 | G81: =Scénáře!G11 -> 0.06 | H81: =Scénáře!H11 -> 0.06 | I81: =Scénáře!I11 -> 0.06 | J81: =Scénáře!J11 -> 0.06 | K81: =Scénáře!K11 -> 0.06 | L81: =Scénáře!L11 -> 0.07 | M81: =Scénáře!M11 -> 0.07 | N81: =Scénáře!N11 -> 0.07 | O81: =Scénáře!O11 -> 0.07 | P81: =Scénáře!P11 -> 0.07

Sheet Výsledné vyhodnocení
A1: Výsledné vyhodnocení
A3: Scénář předpokládaného vývoje ceny za poskytování služby PR: | I3: Varianta A | L3: Varianta B
I4: IRR | J4: ='Varianta A'!B46 -> 0.1098793476 | L4: IRR | M4: ='Varianta B'!B46 -> 0.08858958755 | Q4: Scénář vývoje cen za PR | R4: PR1 | U4: PR2 | X4: PR3
I5: NPV (mil Kč) | J5: ='Varianta A'!B47 -> 45.3726605 | L5: NPV (mil Kč) | M5: ='Varianta B'!B47 -> 12.6300614 | Q5: Scénář vývoje ceny elektřiny na VDT | R5: VDT1 | S5: VDT2 | T5: VDT3 | U5: VDT1 | V5: VDT2 | W5: VDT3 | X5: VDT1 | Y5: VDT2 | Z5: VDT3
A6: Scénář předpokládaného vývoje průměrné ceny elektřiny na VDT: | I6: Doba návratnosti | J6: ='Varianta A'!B48 -> 8 | L6: Doba návratnosti | M6: ='Varianta B'!B48 -> 8 | Q6: Varianta A
I7: Diskontovaná doba návratnosti | J7: ='Varianta A'!B49 -> 11 | L7: Diskontovaná doba návratnosti | M7: ='Varianta B'!B49 -> 13 | Q7: IRR | R7: 0.09592362077 | S7: 0.09607722526 | T7: 0.09574599263 | U7: 0.1098793476 | V7: 0.1100194691 | W7: 0.1097177663 | X7: 0.08166445356 | Y7: 0.08183376004 | Z7: 0.08146810096
Q8: NPV (mil Kč) | R8: 23.05221344 | S8: 23.2873046 | T8: 22.77985054 | U8: 45.3726605 | V8: 45.60775165 | W8: 45.1002976 | X8: 2.29595458 | Y8: 2.531045733 | Z8: 2.023591679
Q9: Doba návratnosti | R9: 8 | S9: 8 | T9: 8 | U9: 8 | V9: 8 | W9: 8 | X9: 8 | Y9: 8 | Z9: 8
Q10: Diskontovaná doba návratnosti | R10: 12 | S10: 12 | T10: 12 | U10: 11 | V10: 11 | W10: 11 | X10: 13 | Y10: 13 | Z10: 13
Q11: Varianta B
Q12: IRR | R12: 0.07304843345 | S12: 0.07600064876 | T12: 0.06954030227 | U12: 0.08858958755 | V12: 0.09124376239 | W12: 0.08545624328 | X12: 0.05692646634 | Y12: 0.06023824025 | Z12: 0.05296114058
Q13: NPV (mil Kč) | R13: -9.690385655 | S13: -5.633829732 | T13: -14.3900748 | U13: 12.6300614 | V13: 16.68661732 | W13: 7.930372251 | X13: -30.44664452 | Y13: -26.3900886 | Z13: -35.14633367
Q14: Doba návratnosti | R14: 9 | S14: 9 | T14: 9 | U14: 8 | V14: 8 | W14: 9 | X14: 10 | Y14: 9 | Z14: 10
Q15: Diskontovaná doba návratnosti | R15: x | S15: x | T15: x | U15: 13 | V15: 12 | W15: 13 | X15: x | Y15: x | Z15: x

Sheet Ceny za PR
A1: Ceny za MW poskytované zálohy PR za hodinu
B3: Rok | C3: Průměr (Kč) | D3: Změna (%)
B4: 2008 | C4: 868 | D4: x
B5: 2009 | C5: 869 | D5: =C5/C4-1 -> 0.001152073733
B6: 2010 | C6: 872 | D6: =C6/C5-1 -> 0.003452243959
B7: 2011 | C7: 465 | D7: -0.4667431193
B8: 2012 | C8: 761 | D8: 0.6365591398
B9: 2013 | C9: 822 | D9: 0.08015768725
B10: 2014 | C10: 732 | D10: -0.1094890511
B11: 2015 | C11: 633 | D11: -0.1352459016
B12: 2016 | C12: 653 | D12: 0.03159557662

Sheet Ceny elektřiny na VDT
A1: Ceny elektřiny na VDT
A3: Vývoj cen na VDT
A4: Rok | B4: Vážený průměr cen (Kč/MWh) | C4: změna (%)
A5: 2008 | B5: 1043.461539 | C5: x
A6: 2009 | B6: 496.3036759 | C6: =B6/B5-1 -> -0.5243680218
A7: 2010 | B7: 1078.965264 | C7: =B7/B6-1 -> 1.174002162 | D7: 1078.965264
A8: 2011 | B8: 1062.315383 | C8: -0.0154313415 | D8: 1062.315383
A9: 2012 | B9: 1092.925331 | C9: 0.02881437007 | D9: 1092.925331
A10: 2013 | B10: 1050.938434 | C10: -0.03841698636 | D10: 1050.938434
A11: 2014 | B11: 969.4415733 | C11: -0.07754675054 | D11: 969.4415733
A12: 2015 | B12: 976.4562407 | C12: 0.007235781498 | D12: 976.4562407
A13: 2016 | B13: 863.4558718 | C13: -0.1157249697 | D13: 863.4558718
B18: VDT, 2016 - hodina | C18: 1. | D18: 2. | E18: 3. | F18: 4. | G18: 5. | H18: 6. | I18: 7. | J18: 8. | K18: 9. | L18: 10. | M18: 11. | N18: 12. | O18: 13. | P18: 14. | Q18: 15. | R18: 16. | S18: 17. | T18: 18. | U18: 19. | V18: 20. | W18: 21. | X18: 22. | Y18: 23. | Z18: 24.
B19: Vážený průměr cen v hodině roku (Kč/MWh) | C19: 694.8377735 | D19: 663.359615 | E19: 645.9017578 | F19: 640.0643006 | G19: 616.5307059 | H19: 649.8225877 | I19: 764.8682515 | J19: 849.9495379 | K19: 941.0661511 | L19: 968.1268469 | M19: 899.1056662 | N19: 921.6812767 | O19: 918.8047056 | P19: 907.1654385 | Q19: 902.6443292 | R19: 913.9516396 | S19: 853.9470943 | T19: 926.220068 | U19: 935.4073067 | V19: 964.1667021 | W19: 868.4858411 | X19: 854.7985936 | Y19: 799.5019832 | Z19: 736.0261764
B21: Cena elektřiny v nejdražší hodině | C21: =MAX(C19:Z19) -> 968.1268469
B22: Cena elektřiny v nejlevnější hodině | C22: =MIN(C19:Z19) -> 616.5307059
B24: Cena kupované elektřiny | C24: =1.5*C21 -> 1452.19027
B25: Cena prodávané elektřiny | C25: =0.5*C22 -> 308.265353

Sheet Ilustrace odchylek frekvence
A1: Vyhodnoceno z dat odchylek frekvene anonymního patnáctidenního období, která mi k nahlédnutí a vypočtení odvozených hodnot laskavě poskytl inženýr Zdeněk Hruška
B3: Průměrné odchylky frekvence v námi sledovaném patnáctidenním období (mHz)
B4: kladná odchylka | C4: 5.44
B5: záporná odchylka | C5: -9.42
B6: Odvozený průměrný požadavek na výši regulačního výkonu (% z Pmax)
B7: záporný regulační výkon | C7: =-C4/200 -> -0.0272
B8: kladný regulační výkon | C8: =-C5/200 -> 0.0471
B9: Průměrná výše energie dodávané a odebírané naší 10 MW baterií (MWh)
B10: hodinová záporná energie | C10: =C7*10 -> -0.272
B11: hodinová kladná energie | C11: =C8*10 -> 0.471
B12: denní záporná energie | C12: =C10*24 -> -6.528
B13: denní kladná energie | C13: =C11*24 -> 11.304
B14: poznámka: pro vyrovnání kladné odchylky frekvence, je třeba dodat záporný výkon a naopak

Sheet Scénáře
A1: Scénáře vývojů cen
C3: Vývoj ceny za poskytování PR | D3: 1 | E3: 2 | F3: 3 | G3: 4 | H3: 5 | I3: 6 | J3: 7 | K3: 8 | L3: 9 | M3: 10 | N3: 11 | O3: 12 | P3: 13 | R3: Varianta/Scénář | S3: Zkratka
C4: základní | D4: 0.01 | E4: 0.01 | F4: 0.02 | G4: 0.02 | H4: 0.02 | I4: 0.02 | J4: 0.02 | K4: 0.02 | L4: 0.02 | M4: 0.02 | N4: 0.02 | O4: 0.02 | P4: 0.02 | R4: Varianta A | S4: A
C5: příznivý | D5: 0.02 | E5: 0.02 | F5: 0.03 | G5: 0.03 | H5: 0.03 | I5: 0.03 | J5: 0.03 | K5: 0.03 | L5: 0.03 | M5: 0.03 | N5: 0.03 | O5: 0.03 | P5: 0.03 | R5: Varianta B | S5: B
C6: nepříznivý | D6: 0 | E6: 0 | F6: 0.01 | G6: 0.01 | H6: 0.01 | I6: 0.01 | J6: 0.01 | K6: 0.01 | L6: 0.01 | M6: 0.01 | N6: 0.01 | O6: 0.01 | P6: 0.01 | R6: Základní vývoj ceny za poskytování PR | S6: PR1
R7: Příznivý vývoj ceny za poskytování PR | S7: PR2
C8: Vývoj ceny elektřiny na VDT | D8: 1 | E8: 2 | F8: 3 | G8: 4 | H8: 5 | I8: 6 | J8: 7 | K8: 8 | L8: 9 | M8: 10 | N8: 11 | O8: 12 | P8: 13 | R8: Nepříznivý vývoj ceny za poskytování PR | S8: PR3
C9: základní | D9: 0.03 | E9: 0.03 | F9: 0.04 | G9: 0.04 | H9: 0.04 | I9: 0.04 | J9: 0.04 | K9: 0.04 | L9: 0.05 | M9: 0.05 | N9: 0.05 | O9: 0.05 | P9: 0.05 | R9: Základní vývoj ceny elektřiny na VDT | S9: VDT1
C10: příznivý | D10: 0.01 | E10: 0.01 | F10: 0.02 | G10: 0.02 | H10: 0.02 | I10: 0.02 | J10: 0.02 | K10: 0.02 | L10: 0.03 | M10: 0.03 | N10: 0.03 | O10: 0.03 | P10: 0.03 | R10: Příznivý vývoj ceny elektřiny na VDT | S10: VDT2
C11: nepříznivý | D11: 0.05 | E11: 0.05 | F11: 0.06 | G11: 0.06 | H11: 0.06 | I11: 0.06 | J11: 0.06 | K11: 0.06 | L11: 0.07 | M11: 0.07 | N11: 0.07 | O11: 0.07 | P11: 0.07 | R11: Nepříznivý vývoj ceny elektřiny na VDT | S11: VDT3
